bitfinex-derivatives/quotes_BTCF0:USTF0_20241213
["timestamp","ask_amount","ask_price","bid_price","bid_amount"]
[1734127402225,0.08844183,101390.0,101380.0,2.39589238]
[1734127404123,0.08844183,101390.0,101380.0,2.63202018]
[1734127404427,0.08844183,101390.0,101380.0,2.75604691]
[1734127404629,0.206854,101400.0,101380.0,1.61742502]
[1734127404824,0.206854,101400.0,101390.0,0.3621748]
[1734127405131,0.206854,101400.0,101390.0,1.5621748]
[1734127405329,0.206354,101400.0,101390.0,1.5621748]
[1734127405526,0.21861907,101400.0,101390.0,2.0621748]
[1734127406339,0.21911907,101400.0,101390.0,2.0621748]
[1734127407028,0.1012069,101400.0,101390.0,2.0621748]
[1734127407227,0.08844183,101400.0,101390.0,2.0621748]
[1734127407435,0.10070919,101400.0,101390.0,2.0621748]
[1734127407830,0.21862136,101400.0,101390.0,2.00079669]
[1734127408036,0.10070919,101400.0,101390.0,2.0621748]
[1734127408338,0.10120919,101400.0,101390.0,2.0621748]
[1734127409339,0.10070919,101400.0,101390.0,2.0621748]
[1734127410338,0.10120919,101400.0,101390.0,2.0621748]
[1734127410533,0.10120745,101400.0,101390.0,2.0621748]
[1734127411330,0.10070745,101400.0,101390.0,2.0621748]
[1734127412437,0.10120745,101400.0,101390.0,2.0621748]
[1734127413338,0.10070745,101400.0,101390.0,2.0621748]
[1734127414230,0.10120745,101400.0,101390.0,2.0621748]
[1734127414432,0.21911962,101400.0,101390.0,2.0621748]
[1734127414832,0.10120745,101400.0,101390.0,2.0621748]
[1734127415134,0.21911962,101400.0,101390.0,2.0621748]
[1734127416741,0.206854,101400.0,101390.0,2.0621748]
[1734127416932,0.21913124,101400.0,101390.0,2.0621748]
[1734127417537,0.21913124,101400.0,101390.0,2.59470012]
[1734127417947,0.21913124,101400.0,101390.0,2.5946948]
[1734127418337,0.24943124,101400.0,101390.0,2.5946948]
[1734127419533,0.16098941,101400.0,101390.0,2.5946948]
[1734127419944,0.77982927,101400.0,101390.0,1.93609669]
[1734127420145,0.82622262,101400.0,101390.0,0.73609669]
[1734127420340,0.82572262,101400.0,101390.0,0.5]
[1734127421433,0.67835787,101400.0,101390.0,0.5]
[1734127422042,0.82583208,101400.0,101390.0,0.73609669]
[1734127423855,0.67835787,101400.0,101390.0,0.47781284]
[1734127426251,0.8258461,101400.0,101390.0,0.47781284]
[1734127428146,0.8258461,101400.0,101390.0,0.53919095]
[1734127428147,0.76446799,101400.0,101390.0,0.53919095]
[1734127428348,0.58788523,101400.0,101390.0,0.77528764]
[1734127428544,0.64926334,101400.0,101390.0,0.77528764]
[1734127428954,0.58788523,101400.0,101390.0,0.77528764]
[1734127430446,0.53858823,101400.0,101390.0,0.77528764]
[1734127434049,0.59996634,101400.0,101390.0,0.77528764]
[1734127434251,0.61225732,101400.0,101390.0,0.77528764]
[1734127435757,0.55087939,101400.0,101390.0,0.77528764]
[1734127435949,0.60017639,101400.0,101390.0,0.77528764]
[1734127436457,0.6615545,101400.0,101390.0,0.77528764]
[1734127436856,0.6615545,101400.0,101390.0,0.71390953]
[1734127437060,0.64926334,101400.0,101390.0,0.71390953]
[1734127437761,0.8258461,101400.0,101390.0,0.71390953]
[1734127438863,0.64926334,101400.0,101390.0,0.71390953]
[1734127439075,0.73973598,101400.0,101390.0,0.47781284]
[1734127439750,0.56315322,101400.0,101390.0,0.47781284]
[1734127439955,0.7401163,101400.0,101390.0,0.47781284]
[1734127440153,0.7401163,101400.0,101390.0,0.45562405]
[1734127440154,0.59134828,101400.0,101390.0,0.45562405]
[1734127441562,0.56315322,101400.0,101390.0,0.45562405]
[1734127442361,0.74008009,101400.0,101390.0,0.45562405]
[1734127442769,0.56315322,101400.0,101390.0,0.45562405]
[1734127443862,0.74008812,101400.0,101390.0,0.45562405]
[1734127447570,0.74008812,101400.0,101380.0,1.7005]
[1734127447774,0.85622545,101390.0,101380.0,1.7005]
[1734127448066,0.71041501,101390.0,101380.0,1.7005]
[1734127448264,0.71041501,101390.0,101380.0,1.7]
[1734127449371,0.71041501,101390.0,101380.0,1.7005]
[1734127449960,0.71041501,101390.0,101380.0,0.5005]
[1734127450365,0.77179312,101390.0,101380.0,0.5]
[1734127450562,0.79964568,101390.0,101380.0,0.5]
[1734127450764,0.62271078,101390.0,101380.0,0.5]
[1734127451273,0.56133267,101390.0,101380.0,0.5005]
[1734127451575,0.73818172,101390.0,101380.0,0.5005]
[1734127451966,0.67680361,101390.0,101380.0,0.5005]
[1734127452270,0.73432107,101390.0,101380.0,0.62275622]
[1734127452469,0.73432107,101390.0,101380.0,0.62507811]
[1734127452669,0.19667202,101390.0,101380.0,0.62507811]
[1734127452870,0.26792042,101390.0,101380.0,0.8611748]
[1734127453178,0.26792042,101390.0,101380.0,0.8943748]
[1734127453370,0.2779827,101390.0,101380.0,0.8948748]
[1734127453571,0.26792061,101390.0,101380.0,0.8948748]
[1734127454283,0.26792061,101390.0,101380.0,0.8943748]
[1734127454571,0.21861861,101390.0,101380.0,0.95575291]
[1734127455270,0.21861861,101390.0,101380.0,0.95625291]
[1734127455880,0.21861861,101390.0,101380.0,2.15625291]
[1734127456373,0.08843018,101390.0,101380.0,3.03992603]
[1734127457379,0.08843018,101390.0,101380.0,3.04042603]
[1734127458374,0.08843018,101390.0,101380.0,2.57618028]
[1734127458577,0.08843018,101390.0,101380.0,2.58584272]
[1734127458781,0.08843018,101390.0,101380.0,2.81411364]
[1734127461280,0.08843018,101390.0,101380.0,2.81361364]
[1734127468182,0.08843018,101390.0,101380.0,2.77155518]
[1734127468384,0.72989012,101400.0,101380.0,2.83293329]
[1734127468578,0.72989012,101400.0,101390.0,0.29745269]
[1734127468778,0.72989012,101400.0,101390.0,0.23607458]
[1734127468983,0.72988938,101400.0,101390.0,0.23607458]
[1734127469285,0.72988938,101400.0,101390.0,1.93607458]
[1734127469286,0.6419592,101400.0,101390.0,1.93607458]
[1734127469688,0.6419592,101400.0,101390.0,1.7]
[1734127470081,0.6736592,101400.0,101390.0,1.93607458]
[1734127470282,0.6731592,101400.0,101390.0,1.93607458]
[1734127471287,0.6736592,101400.0,101390.0,1.93607458]
[1734127472188,0.82102387,101400.0,101390.0,1.7]
[1734127472383,0.82052387,101400.0,101390.0,1.7]
[1734127473177,0.67315385,101400.0,101390.0,1.7]
[1734127473380,0.67365385,101400.0,101390.0,1.7]
[1734127473587,0.82102387,101400.0,101390.0,1.7]
[1734127473788,0.67365385,101400.0,101390.0,1.7]
[1734127474382,0.82052387,101400.0,101390.0,1.7]
[1734127475387,0.82102387,101400.0,101390.0,1.7]
[1734127475590,0.70312231,101400.0,101390.0,1.7]
[1734127475796,0.82103692,101400.0,101390.0,1.7]
[1734127476092,0.6736669,101400.0,101390.0,1.7]
[1734127477000,0.82103692,101400.0,101390.0,1.7]
[1734127477496,0.82103692,101400.0,101390.0,1.93607458]
[1734127478498,0.80875559,101400.0,101390.0,1.93607458]
[1734127478687,0.82104042,101400.0,101390.0,1.93607458]
[1734127479089,0.69084098,101400.0,101390.0,1.7]
[1734127482500,0.65914098,101400.0,101390.0,1.7]
[1734127482693,0.51177096,101400.0,101390.0,1.7]
[1734127482893,0.57314907,101400.0,101390.0,1.7]
[1734127483392,0.57264907,101400.0,101390.0,1.7]
[1734127483795,0.48117096,101400.0,101390.0,1.7]
[1734127484702,0.65802001,101400.0,101390.0,1.93653804]
[1734127487508,0.65802001,101400.0,101390.0,0.73653804]
[1734127490103,0.5966419,101400.0,101390.0,0.79791615]
[1734127490303,0.74437072,101400.0,101390.0,0.79791615]
[1734127490504,0.80574883,101400.0,101390.0,0.79791615]
[1734127492004,0.80574883,101400.0,101390.0,0.73653804]
[1734127492506,0.65802001,101400.0,101390.0,0.73653804]
[1734127496503,0.65802001,101400.0,101390.0,0.5]
[1734127496704,0.65802001,101400.0,101390.0,0.73653804]
[1734127502313,0.65802001,101400.0,101390.0,0.67738785]
[1734127502507,0.65802001,101400.0,101390.0,0.91392589]
[1734127507317,0.5966419,101400.0,101390.0,0.79791615]
[1734127508215,0.74441888,101400.0,101390.0,0.79791615]
[1734127508416,0.7444238,101400.0,101390.0,0.79791615]
[1734127512323,0.7444238,101400.0,101390.0,0.80788296]
[1734127514026,0.5966419,101400.0,101390.0,0.80788296]
[1734127515829,0.5966419,101400.0,101390.0,0.98527264]
[1734127516237,0.5473489,101400.0,101390.0,0.98527264]
[1734127516725,0.5473489,101400.0,101390.0,0.80788296]
[1734127518728,0.53764905,101400.0,101390.0,0.73653804]
[1734127518928,0.64832016,101400.0,101390.0,0.73653804]
[1734127519238,0.64832016,101400.0,101390.0,0.91392538]
[1734127521839,0.61934205,101400.0,101390.0,0.91392538]
[1734127522341,0.61934205,101400.0,101390.0,0.97530349]
[1734127527438,0.68072016,101400.0,101390.0,0.91392538]
[1734127529835,0.61934205,101400.0,101390.0,0.91392538]
[1734127530937,0.65214205,101400.0,101390.0,0.91392538]
[1734127535046,0.65214205,101400.0,101390.0,0.97530349]
[1734127537041,0.65214205,101400.0,101390.0,0.79791615]
[1734127537241,0.65214205,101400.0,101390.0,0.9753762]
[1734127537441,0.65214205,101400.0,101390.0,0.79791615]
[1734127537650,0.65214205,101400.0,101390.0,0.97538274]
[1734127540468,0.65214205,101400.0,101390.0,0.91400463]
[1734127540469,0.71352016,101400.0,101390.0,0.91400463]
[1734127540678,0.77489827,101400.0,101390.0,0.91400463]
[1734127540969,0.71352016,101400.0,101390.0,0.91400463]
[1734127541413,0.71352016,101400.0,101390.0,0.67746659]
[1734127541414,0.71397196,101400.0,101390.0,0.67746659]
[1734127541771,0.53667111,101400.0,101390.0,0.67746659]
[1734127547045,0.53667111,101400.0,101390.0,0.5]
[1734127547250,0.53667111,101400.0,101390.0,0.67746659]
[1734127547457,0.71384849,101400.0,101390.0,0.67746659]
[1734127548058,0.53667111,101400.0,101390.0,0.5]
[1734127549058,0.71384355,101400.0,101390.0,0.67746659]
[1734127549556,0.53667111,101400.0,101390.0,0.5]
[1734127550357,0.71383412,101400.0,101390.0,0.5]
[1734127550552,0.71383509,101400.0,101390.0,0.67746659]
[1734127551153,0.53667111,101400.0,101390.0,0.5]
[1734127551845,0.71383244,101400.0,101390.0,0.5]
[1734127552449,0.71383244,101400.0,101390.0,0.67746659]
[1734127553058,0.71383244,101400.0,101390.0,0.5]
[1734127553259,0.71383244,101400.0,101390.0,0.67746659]
[1734127555352,0.71383244,101400.0,101390.0,0.6552788]
[1734127555550,0.71383244,101400.0,101390.0,0.47781221]
[1734127555958,0.71383244,101400.0,101390.0,0.6552788]
[1734127564266,0.71379991,101400.0,101390.0,0.6552788]
[1734127566555,0.77517802,101400.0,101390.0,0.6552788]
[1734127566756,0.049298,101390.0,101380.0,0.67740043]
[1734127566959,0.70995332,101390.0,101380.0,0.5]
[1734127567167,0.73796238,101390.0,101380.0,0.35205702]
[1734127567360,0.73796238,101390.0,101380.0,0.35255702]
[1734127567559,0.73796238,101390.0,101380.0,0.0005]
[1734127568267,0.53168517,101390.0,101380.0,0.0005]
[1734127568565,0.53168517,101390.0,101370.0,0.74310043]
[1734127568566,0.049303,101380.0,101370.0,0.74310043]
[1734127568766,0.7959443,101380.0,101370.0,0.74310043]
[1734127569161,0.7959443,101380.0,101370.0,0.80447854]
[1734127569467,0.61896438,101380.0,101370.0,0.80447854]
[1734127571168,0.64125691,101380.0,101370.0,0.80447854]
[1734127572565,0.64125691,101380.0,101370.0,2.00447854]
[1734127573755,0.62897224,101380.0,101370.0,2.00447854]
[1734127574361,0.64125385,101380.0,101370.0,2.00447854]
[1734127576463,0.57987574,101380.0,101370.0,2.00497854]
[1734127576664,0.69776238,101380.0,101370.0,2.00497854]
[1734127576960,0.57987574,101380.0,101370.0,2.00497854]
[1734127577162,0.18948029,101380.0,101370.0,2.00497854]
[1734127577469,0.18948029,101380.0,101370.0,2.24101658]
[1734127578366,0.18948029,101380.0,101370.0,2.24151658]
[1734127579368,0.55028029,101380.0,101370.0,2.24151658]
[1734127579575,0.69776356,101380.0,101370.0,2.00497854]
[1734127579869,0.55028029,101380.0,101370.0,2.00497854]
[1734127580068,0.18948029,101380.0,101370.0,2.24151658]
[1734127581066,0.55027921,101380.0,101370.0,2.24151658]
[1734127581963,0.69776248,101380.0,101370.0,2.00497854]
[1734127583569,0.75914059,101380.0,101370.0,1.94360043]
[1734127584069,0.64125277,101380.0,101370.0,1.94360043]
[1734127584270,0.64125664,101380.0,101370.0,1.94360043]
[1734127586077,0.64125664,101380.0,101370.0,1.91070043]
[1734127586373,0.67435664,101380.0,101370.0,1.91070043]
[1734127588365,0.66207224,101380.0,101370.0,1.91070043]
[1734127588777,0.66207224,101380.0,101370.0,1.87790043]
[1734127591273,0.83905216,101380.0,101370.0,1.87790043]
[1734127591474,0.83905216,101380.0,101370.0,1.87740043]
[1734127591672,0.83905216,101380.0,101370.0,1.93877854]
[1734127595073,0.83905216,101380.0,101370.0,1.87740043]
[1734127595279,0.69156889,101380.0,101370.0,1.87740043]
[1734127595475,0.78157117,101380.0,101370.0,0.67740043]
[1734127595678,0.783847,101380.0,101370.0,0.65520856]
[1734127595880,0.783847,101380.0,101370.0,0.5]
[1734127595881,0.60686708,101380.0,101370.0,0.5]
[1734127596075,0.84176726,101380.0,101370.0,0.5]
[1734127596574,0.049308,101370.0,101360.0,0.50197941]
[1734127596770,0.72913516,101370.0,101360.0,0.50197941]
[1734127596977,0.68119019,101370.0,101360.0,0.50197941]
[1734127597477,0.68119019,101370.0,101360.0,0.50147941]
[1734127598590,0.68119019,101370.0,101360.0,0.50197941]
[1734127599477,0.68119019,101370.0,101360.0,0.50147941]
[1734127600485,0.68119019,101370.0,101360.0,0.50197941]
[1734127600884,0.68119019,101370.0,101360.0,0.5005]
[1734127601282,0.76727081,101370.0,101360.0,0.5005]
[1734127601477,0.82864892,101370.0,101360.0,0.5]
[1734127602484,0.82864892,101370.0,101360.0,0.5005]
[1734127603583,0.82864892,101370.0,101360.0,0.5]
[1734127604187,0.76727081,101370.0,101360.0,0.5]
[1734127604387,0.82864892,101370.0,101360.0,0.5]
[1734127604587,0.82864892,101370.0,101360.0,0.5005]
[1734127605585,0.82864892,101370.0,101360.0,0.5]
[1734127606678,0.82864892,101370.0,101360.0,0.5005]
[1734127607481,0.82864892,101370.0,101360.0,0.5]
[1734127608588,0.82864892,101370.0,101360.0,0.5005]
[1734127609190,0.82858633,101370.0,101360.0,0.5005]
[1734127609577,0.68119019,101370.0,101360.0,0.5005]
[1734127613094,0.82860569,101370.0,101360.0,0.5005]
[1734127613489,0.82860569,101370.0,101360.0,0.5]
[1734127616183,0.68119019,101370.0,101360.0,0.5]
[1734127616386,0.82865272,101370.0,101360.0,0.5]
[1734127619200,0.68119019,101370.0,101360.0,0.5]
[1734127625294,0.68119019,101370.0,101360.0,0.73653804]
[1734127626194,0.53274437,101370.0,101360.0,0.71434367]
[1734127626397,0.50408611,101370.0,101360.0,0.71434367]
[1734127626596,0.50408611,101370.0,101360.0,0.47780563]
[1734127627303,0.50408611,101370.0,101360.0,0.71434367]
[1734127627802,0.50408611,101370.0,101360.0,0.47780563]
[1734127628490,0.50408611,101370.0,101360.0,0.71434367]
[1734127628691,0.50408611,101370.0,101360.0,0.47780563]
[1734127628896,0.71044879,101370.0,101360.0,0.47780563]
[1734127630802,0.34964879,101370.0,101360.0,0.47780563]
[1734127630996,1.07124879,101370.0,101360.0,0.47780563]
[1734127640210,1.1326269,101370.0,101360.0,0.47780563]
[1734127640507,0.049312,101360.0,101350.0,0.22587131]
[1734127640716,0.049317,101350.0,101340.0,0.63829298]
[1734127640911,0.56547322,101350.0,101340.0,0.63829298]
[1734127641209,0.56547322,101350.0,101340.0,0.28378111]
[1734127641712,0.049322,101340.0,101330.0,0.94637723]
[1734127641903,0.47150011,101340.0,101330.0,0.94637723]
[1734127642406,0.53287822,101340.0,101330.0,0.91507723]
[1734127642608,0.442222,101340.0,101330.0,0.91507723]
[1734127642912,0.56497822,101340.0,101330.0,0.91507723]
[1734127644112,0.71226052,101340.0,101330.0,0.50148005]
[1734127644605,0.72453263,101340.0,101330.0,0.50148005]
[1734127646515,0.84229151,101340.0,101330.0,0.50148005]
[1734127647514,0.85222255,101340.0,101330.0,0.50148005]
[1734127648002,0.72219834,101340.0,101330.0,0.50148005]
[1734127648201,0.75329834,101340.0,101330.0,0.50148005]
[1734127648407,0.81467645,101340.0,101330.0,0.5]
[1734127648709,0.81467645,101340.0,101320.0,0.5]
[1734127648710,0.049327,101330.0,101320.0,0.5]
[1734127648904,0.76852064,101330.0,101320.0,0.5]
[1734127649110,0.65082485,101330.0,101320.0,0.5]
[1734127650109,0.66307948,101330.0,101320.0,0.5]
[1734127650311,0.72445328,101330.0,101320.0,0.5]
[1734127651214,0.049332,101320.0,101310.0,1.7]
[1734127651419,0.71387924,101320.0,101310.0,1.7]
[1734127651816,0.86099898,101320.0,101310.0,0.5]
[1734127652920,0.87323439,101320.0,101310.0,0.5]
[1734127653120,0.86099898,101320.0,101310.0,0.5]
[1734127653619,0.71387924,101320.0,101310.0,0.5]
[1734127654215,0.72610953,101320.0,101310.0,0.5]
[1734127654516,0.72610953,101320.0,101310.0,0.5005]
[1734127656416,0.61950113,101320.0,101310.0,0.5005]
[1734127656614,0.61950113,101320.0,101310.0,0.5315]
[1734127657307,0.62924207,101320.0,101310.0,0.5315]
[1734127659019,0.51165105,101320.0,101310.0,1.7315]
[1734127659216,0.48125105,101320.0,101310.0,1.79287811]
[1734127659415,0.410132,101320.0,101310.0,1.82407811]
[1734127662722,0.410132,101320.0,101310.0,1.87341511]
[1734127667415,0.49817494,101320.0,101310.0,1.87341511]
[1734127669327,0.5104287,101320.0,101310.0,1.87341511]
[1734127669525,0.62801972,101320.0,101310.0,1.87341511]
[1734127670226,0.61576596,101320.0,101310.0,1.87341511]
[1734127670535,0.62801972,101320.0,101310.0,1.87341511]
[1734127671529,0.62801972,101320.0,101310.0,1.94441478]
[1734127671723,0.20563396,101320.0,101310.0,2.30521478]
[1734127672517,0.20563396,101320.0,101310.0,2.30471478]
[1734127673028,0.20563396,101320.0,101310.0,2.24333667]
[1734127673335,0.20563396,101320.0,101310.0,2.30471478]
[1734127673931,0.20563396,101320.0,101310.0,2.24333667]
[1734127674323,0.20563396,101320.0,101310.0,1.88253667]
[1734127674522,0.20563396,101320.0,101310.0,2.24333667]
[1734127677635,0.20563396,101320.0,101310.0,2.30471478]
[1734127678439,0.20563396,101320.0,101310.0,2.24333667]
[1734127680036,0.25496596,101320.0,101310.0,2.18195856]
[1734127680233,0.61576596,101320.0,101310.0,1.88253667]
[1734127685636,0.52772302,101320.0,101310.0,1.88253667]
[1734127686338,0.54002781,101320.0,101310.0,1.88253667]
[1734127691641,0.57212781,101320.0,101310.0,1.88253667]
[1734127692145,0.21132781,101320.0,101310.0,1.88253667]
[1734127692346,0.57212781,101320.0,101310.0,1.85133667]
[1734127692843,0.21132781,101320.0,101310.0,1.85133667]
[1734127693036,0.57212781,101320.0,101310.0,1.85133667]
[1734127695138,0.55982302,101320.0,101310.0,1.85133667]
[1734127695344,0.57213717,101320.0,101310.0,1.85133667]
[1734127696832,0.57213717,101320.0,101310.0,1.78995856]
[1734127697038,0.57213717,101320.0,101310.0,1.749337]
[1734127697039,0.63351528,101320.0,101310.0,1.749337]
[1734127697345,0.60253717,101320.0,101310.0,1.81071511]
[1734127700049,0.63206589,101320.0,101310.0,2.34499636]
[1734127700641,0.63206589,101320.0,101310.0,2.58163562]
[1734127701041,0.63206589,101320.0,101310.0,2.34314516]
[1734127701336,0.61975174,101320.0,101310.0,2.34314516]
[1734127701535,0.63206837,101320.0,101310.0,2.34314516]
[1734127702549,0.63206837,101320.0,101310.0,2.1065059]
[1734127702748,0.63206837,101320.0,101310.0,2.34315628]
[1734127702948,0.63206837,101320.0,101310.0,2.58139679]
[1734127703451,0.63206837,101320.0,101310.0,2.34474641]
[1734127703844,0.63206837,101320.0,101310.0,2.58140217]
[1734127704037,0.64203461,101320.0,101310.0,2.34474641]
[1734127704243,0.64203461,101320.0,101310.0,2.5814027]
[1734127704749,0.64203529,101320.0,101310.0,2.5814027]
[1734127705148,0.64203499,101320.0,101310.0,2.5814027]
[1734127705351,0.64203499,101320.0,101310.0,2.58117107]
[1734127705749,0.64203499,101320.0,101310.0,2.34451478]
[1734127708746,0.64203499,101320.0,101310.0,2.58123443]
[1734127708947,0.62971798,101320.0,101310.0,2.58123443]
[1734127709164,0.64203828,101320.0,101310.0,2.58123443]
[1734127709653,0.64203828,101320.0,101310.0,2.5812622]
[1734127710246,0.64203831,101320.0,101310.0,2.5812622]
[1734127710650,0.62971798,101320.0,101310.0,2.5812622]
[1734127710850,0.64203879,101320.0,101310.0,2.5812622]
[1734127711248,0.14711974,101320.0,101310.0,2.46963782]
[1734127711554,0.11829984,101320.0,101310.0,2.85402276]
[1734127711855,0.11829984,101320.0,101310.0,1.68592276]
[1734127712151,0.11829984,101320.0,101310.0,2.88592276]
[1734127712354,0.20700421,101320.0,101310.0,2.88592276]
[1734127712547,0.20700421,101320.0,101310.0,3.18592276]
[1734127712749,0.08870437,101320.0,101310.0,3.18592276]
[1734127712954,0.11879984,101330.0,101320.0,0.049331]
[1734127713141,0.11879984,101330.0,101320.0,0.80132442]
[1734127713550,0.11879984,101330.0,101320.0,1.30132442]
[1734127713748,0.11829984,101330.0,101320.0,1.30132442]
[1734127713949,0.3358424,101340.0,101320.0,1.66270253]
[1734127714251,0.29463727,101340.0,101330.0,0.56318222]
[1734127714449,0.29463727,101340.0,101330.0,0.83381942]
[1734127714450,0.17640191,101340.0,101330.0,0.83381942]
[1734127714856,0.17640191,101340.0,101330.0,1.33381942]
[1734127715055,0.17640191,101340.0,101330.0,1.62923136]
[1734127715763,0.17640191,101340.0,101330.0,1.63608706]
[1734127717753,0.45342706,101350.0,101340.0,0.049322]
[1734127717958,0.45342706,101350.0,101340.0,0.17207822]
[1734127718455,0.45342706,101350.0,101340.0,1.87207822]
[1734127718759,0.45342706,101350.0,101340.0,1.87893392]
[1734127719159,0.45342706,101350.0,101340.0,1.81755581]
[1734127720059,0.51480517,101350.0,101340.0,0.5068557]
[1734127720362,0.51480517,101350.0,101340.0,0.68381761]
[1734127720564,0.50249511,101350.0,101340.0,0.68381761]
[1734127725263,0.64961485,101350.0,101340.0,0.5068557]
[1734127727168,0.66190054,101350.0,101340.0,0.5068557]
[1734127727560,0.66190052,101350.0,101340.0,0.5068557]
[1734127728871,0.64961485,101350.0,101340.0,0.5068557]
[1734127729167,0.50249511,101350.0,101340.0,0.5068557]
[1734127729367,0.50249511,101350.0,101340.0,0.48465521]
[1734127729761,0.50299511,101350.0,101340.0,0.48465521]
[1734127736665,0.50299511,101350.0,101340.0,0.54603332]
[1734127737065,0.441617,101350.0,101340.0,0.54603332]
[1734127737266,0.441617,101350.0,101340.0,1.79535532]
[1734127737976,0.50299511,101350.0,101340.0,1.73397721]
[1734127739883,0.50299511,101350.0,101340.0,0.48465521]
[1734127741277,0.5057041,101350.0,101340.0,0.48465521]
[1734127741679,0.5052041,101350.0,101340.0,0.48465521]
[1734127745277,0.68244954,101350.0,101340.0,0.48465521]
[1734127748984,0.5052041,101350.0,101340.0,0.48465521]
[1734127752482,0.44382599,101350.0,101340.0,0.48465521]
[1734127752681,0.5052041,101350.0,101340.0,0.48465521]
[1734127755479,0.5052041,101350.0,101340.0,0.66161712]
[1734127756474,0.5052041,101350.0,101340.0,0.18381761]
[1734127760489,0.52491988,101350.0,101340.0,0.18381761]
[1734127762289,0.53259982,101350.0,101340.0,0.18381761]
[1734127764794,0.55103402,101350.0,101330.0,0.76774921]
[1734127764991,0.51573064,101340.0,101330.0,0.76774921]
[1734127765192,0.50159911,101340.0,101330.0,0.76774921]
[1734127765398,0.5043081,101340.0,101330.0,0.76774921]
[1734127765893,0.5043081,101340.0,101330.0,0.76824921]
[1734127766396,0.5043081,101340.0,101330.0,0.73644921]
[1734127766795,0.5043081,101340.0,101330.0,0.73594921]
[1734127767594,0.56568621,101340.0,101330.0,0.73594921]
[1734127767792,0.59608621,101340.0,101330.0,0.73644921]
[1734127768791,0.59608621,101340.0,101330.0,0.23594921]
[1734127769692,0.59608621,101340.0,101330.0,0.23644921]
[1734127770793,0.59608621,101340.0,101330.0,0.23594921]
[1734127771796,0.59608621,101340.0,101330.0,0.23644921]
[1734127772597,0.60615644,101340.0,101330.0,0.23644921]
[1734127772792,0.60615644,101340.0,101330.0,0.23594921]
[1734127773800,0.60615644,101340.0,101330.0,0.23644921]
[1734127777706,0.049326,101330.0,101310.0,0.9075268]
[1734127777910,0.89862181,101320.0,101310.0,0.4185268]
[1734127778199,0.92378722,101320.0,101310.0,0.4185268]
[1734127778400,0.92649621,101320.0,101310.0,0.4185268]
[1734127780204,0.92649621,101320.0,101310.0,0.3853268]
[1734127781296,0.92649621,101320.0,101310.0,0.3539268]
[1734127782003,0.92649621,101320.0,101300.0,0.63248048]
[1734127782004,0.049336,101310.0,101300.0,0.63248048]
[1734127782202,0.049336,101310.0,101300.0,0.631]
[1734127782203,0.42242901,101310.0,101300.0,0.631]
[1734127782501,0.48651611,101310.0,101300.0,0.631]
[1734127782807,0.634008,101310.0,101300.0,0.631]
[1734127783491,0.75198958,101310.0,101300.0,0.631]
[1734127784504,0.75198122,101310.0,101300.0,0.631]
[1734127787201,0.76185551,101310.0,101300.0,0.631]
[1734127788602,0.64388229,101310.0,101300.0,0.631]
[1734127789208,0.76184334,101310.0,101300.0,0.631]
[1734127789508,0.64388229,101310.0,101300.0,0.631]
[1734127789700,0.76185188,101310.0,101300.0,0.6315]
[1734127790207,0.64388229,101310.0,101300.0,0.6315]
[1734127790508,0.64387852,101310.0,101300.0,0.6315]
[1734127791396,0.64387965,101310.0,101300.0,0.6315]
[1734127794208,0.63158928,101310.0,101300.0,0.6315]
[1734127795401,0.8086036,101310.0,101300.0,0.6315]
[1734127799612,0.66111171,101310.0,101300.0,0.6315]
[1734127806703,0.66111171,101310.0,101300.0,0.631]
[1734127813424,0.66111171,101310.0,101300.0,0.6]
[1734127813719,0.69171171,101310.0,101300.0,0.6]
[1734127816322,0.51469739,101310.0,101300.0,0.6]
[1734127831328,0.51469739,101310.0,101300.0,1.8]
[1734127833042,0.51469739,101310.0,101300.0,0.6]
[1734127834039,0.8760755,101310.0,101300.0,0.468539]
[1734127834224,0.8760755,101310.0,101280.0,0.85470072]
[1734127834225,0.049341,101300.0,101280.0,0.85470072]
[1734127834425,0.51896182,101290.0,101280.0,0.85470072]
[1734127834638,0.5051321,101290.0,101280.0,0.85470072]
[1734127835130,0.8659321,101290.0,101280.0,0.85470072]
[1734127836335,0.8659321,101290.0,101280.0,0.5]
[1734127836524,1.04304606,101290.0,101280.0,0.5]
[1734127836730,0.8659321,101290.0,101280.0,0.5]
[1734127837127,1.04296586,101290.0,101280.0,0.5]
[1734127839932,1.04296586,101290.0,101280.0,1.7]
[1734127840132,1.1903729,101290.0,101280.0,1.2]
[1734127840540,1.20014807,101290.0,101280.0,1.2]
[1734127840733,1.20014807,101290.0,101280.0,1.74935]
[1734127845738,1.20014807,101290.0,101280.0,1.74985]
[1734127846737,1.20014807,101290.0,101280.0,1.74935]
[1734127847048,1.20014807,101290.0,101280.0,1.7]
[1734127847746,1.20014807,101290.0,101280.0,1.7005]
[1734127848944,1.20014807,101290.0,101280.0,1.7]
[1734127849743,1.21242837,101290.0,101280.0,1.7005]
[1734127852145,1.21242837,101290.0,101280.0,1.2005]
[1734127852846,1.21242837,101290.0,101280.0,0.0005]
[1734127852847,1.26152618,101290.0,101280.0,0.0005]
[1734127853149,1.11411914,101290.0,101280.0,0.0005]
[1734127853547,0.93708538,101290.0,101280.0,0.0005]
[1734127855550,1.60196538,101290.0,101280.0,0.0005]
[1734127856055,1.60196538,101290.0,101280.0,1e-06]
[1734127856254,0.049355,101270.0,101260.0,1.7]
[1734127856452,0.83233311,101270.0,101260.0,1.7]
[1734127856652,0.8667421,101270.0,101260.0,1.7]
[1734127856852,0.8667421,101270.0,101260.0,0.5]
[1734127858665,1.19076748,101270.0,101260.0,0.5]
[1734127861557,1.25214559,101270.0,101260.0,0.5]
[1734127861758,1.25214559,101270.0,101250.0,1.7]
[1734127861956,0.5897412,101260.0,101250.0,1.7]
[1734127862157,0.57569384,101260.0,101250.0,0.5]
[1734127862558,0.57840283,101260.0,101250.0,0.5]
[1734127863068,0.60950283,101260.0,101250.0,0.5]
[1734127863259,0.48674661,101260.0,101250.0,0.5]
[1734127863450,0.60950283,101260.0,101250.0,0.5]
[1734127863651,0.75678709,101260.0,101250.0,0.5]
[1734127864062,0.74450947,101260.0,101250.0,0.5]
[1734127864964,0.74450947,101260.0,101250.0,0.5005]
[1734127865165,0.75678822,101260.0,101250.0,0.5005]
[1734127865670,0.74450947,101260.0,101250.0,0.5005]
[1734127866259,0.77396633,101260.0,101250.0,0.0005]
[1734127866461,0.83534444,101260.0,101250.0,0.0005]
[1734127866660,0.77396633,101260.0,101250.0,0.0005]
[1734127867360,0.12275622,101260.0,101250.0,0.0005]
[1734127867572,0.23349433,101260.0,101250.0,0.0005]
[1734127867868,0.32183943,101260.0,101250.0,0.0005]
[1734127868462,0.26046132,101260.0,101250.0,0.0005]
[1734127870368,0.20184215,101260.0,101250.0,0.0005]